[Event "DVM U12w 2024"]
[Site "Bad Homburg"]
[Date "2024.12.28"]
[Round "4"]
[White "Mandziuk, Varvara"]
[Black "Suryaprakash, Smrithi"]
[Result "0-1"]
[ECO "B22"]
[WhiteElo "1160"]
[BlackElo "1527"]
[Annotator "NA RC"]
[PlyCount "90"]
[EventDate "2024.12.23"]
[EventType "team-tourn"]
[EventRounds "7"]
[EventCountry "GER"]
[SourceTitle "playchess.com"]
[Source "ChessBase"]
[SourceQuality "1"]
[TimeControl "40/5400+30:1800+30"]

1. e4 {[%emt 0:00:01]} c5 {[%emt 0:00:17]} 2. c3 {[%emt 0:00:07]} Nf6 {[%emt 0:00:16]} 3. e5 {[%emt 0:00:14]} Nd5 {[%emt 0:00:40]} 4. d4 {[%emt 0:00:12]} cxd4 {[%emt 0:00:06]} 5. cxd4 {[%emt 0:00:06]} d6 {[%emt 0:00:26]} 6. Nf3 {[%emt 0:00:40]} Nc6 {[%emt 0:00:48]} 7. Bc4 {[%emt 0:00:43]} e6 {[%emt 0:00:13]} 8. O-O {[%emt 0:02:01]} Be7 {[%emt 0:00:46]} 9. Nc3 {[%emt 0:04:22]} Nxc3 {[%emt 0:06:34]} 10. bxc3 {[%emt 0:00:35]} dxe5 {[%emt 0:00:30]} 11. dxe5 {[%emt 0:03:20]} Qc7 {[%emt 0:01:09]} 12. Bf4 {[%emt 0:00:37]} O-O {[%emt 0:01:48]} 13. Qe2 {[%emt 0:00:32]} a6 {[%emt 0:03:54]} 14. a4 {[%emt 0:00:32]} Rd8 {[%emt 0:10:06]} 15. Rad1 {[%emt 0:01:15]} Bd7 {[%emt 0:02:28]} 16. Qc2 {[%emt 0:11:45]} h6 {[%emt 0:02:29]} 17. Ba2 {[%emt 0:02:29]} Nb4 {[%emt 0:05:46]} 18. Qb3 {[%emt 0:08:20]} Nxa2 {[%emt 0:00:46]} 19. Qxa2 {[%emt 0:00:11]} Qxc3 {[%emt 0:00:07]} 20. Rc1 {[%emt 0:00:33]} Qb4 {[%emt 0:01:19]} 21. Rc4 {[%emt 0:01:23]} Qa3 {[%emt 0:01:21]} 22. Qxa3 {[%emt 0:00:38]} Bxa3 {[%emt 0:00:11]} 23. Rd1 {[%emt 0:00:24]} Bxa4 {[%emt 0:03:23]} 24. Ra1 {[%emt 0:03:00]} b5 {[%emt 0:01:06]} 25. Rc7 {[%emt 0:01:34]} b4 {[%emt 0:01:43]} 26. Nd2 {[%emt 0:01:45]} Bb5 {[%emt 0:04:52]} 27. Nb3 {[%emt 0:04:24]} Rac8 {[%emt 0:04:49]} 28. Rxc8 {[%emt 0:00:49]} Rxc8 {[%emt 0:00:25]} 29. f3 {[%emt 0:01:02]} Ba4 {[%emt 0:04:25]} 30. Rb1 {[%emt 0:01:34]} Bxb3 {[%emt 0:01:26]} 31. Rxb3 {[%emt 0:00:14]} Rc3 {[%emt 0:01:05]} 32. Rb1 {[%emt 0:00:37]} a5 {[%emt 0:01:08]} 33. Kf2 {[%emt 0:00:19]} a4 {[%emt 0:01:42]} 34. Bd2 {[%emt 0:00:59]} Rc2 {[%emt 0:00:45]} 35. Ke3 {[%emt 0:00:19]} b3 {[%emt 0:01:32]} 36. Kd3 {[%emt 0:00:35]} Bc5 {[%emt 0:05:02]} 37. Bc3 {[%emt 0:01:00]} Rxg2 {[%emt 0:00:44]} 38. h4 {[%emt 0:00:38]} Rf2 {[%emt 0:02:09]} 39. Bb2 {[%emt 0:01:02]} Rxf3+ {[%emt 0:00:26]} 40. Kd2 {[%emt 0:00:29]} a3 {[%emt 0:00:17]} 41. Ba1 {[%emt 0:31:34]} b2 {[%emt 0:30:08]} 42. Bxb2 {[%emt 0:00:07]} axb2 {[%emt 0:00:10]} 43. Rxb2 {[%emt 0:00:06]} Rf2+ {[%emt 0:00:05]} 44. Kc1 {[%emt 0:00:10]} Ba3 {[%emt 0:00:06]} 45. Kb1 {[%emt 0:00:06]} Rxb2+ {[%emt 0:00:06]} 0-1

[Event "DVM U12w 2024"]
[Site "Bad Homburg"]
[Date "2024.12.28"]
[Round "4"]
[White "Du, Vivian"]
[Black "Ruddat, Maila"]
[Result "0-1"]
[ECO "C50"]
[WhiteElo "1144"]
[BlackElo "1486"]
[Annotator "NA RC"]
[PlyCount "44"]
[EventDate "2024.12.23"]
[EventType "team-tourn"]
[EventRounds "7"]
[EventCountry "GER"]
[SourceTitle "playchess.com"]
[Source "ChessBase"]
[SourceQuality "1"]
[TimeControl "40/5400+30:1800+30"]

1. e4 {[%emt 0:00:02]} e5 {[%emt 0:00:36]} 2. Nf3 {[%emt 0:00:08]} Nc6 {[%emt 0:00:33]} 3. Bc4 {[%emt 0:00:11]} Nf6 {[%emt 0:00:34]} 4. d3 {[%emt 0:00:18]} Bc5 {[%emt 0:00:36]} 5. O-O {[%emt 0:00:19]} d6 {[%emt 0:00:20]} 6. h3 {[%emt 0:00:27]} Be6 {[%emt 0:00:31]} 7. Bb3 {[%emt 0:00:15]} Qd7 {[%emt 0:01:14]} 8. Be3 {[%emt 0:00:47]} Bb6 {[%emt 0:00:25]} 9. c3 {[%emt 0:00:37]} h6 {[%emt 0:00:36]} 10. Nbd2 {[%emt 0:00:56]} g5 {[%emt 0:03:39]} 11. Nh2 {[%emt 0:01:52]} O-O-O {[%emt 0:00:38]} 12. Bxb6 {[%emt 0:00:27]} cxb6 {[%emt 0:00:43]} 13. Qf3 {[%emt 0:01:13]} Qe7 {[%emt 0:02:05]} 14. a4 {[%emt 0:00:50]} h5 {[%emt 0:00:57]} 15. Bxe6+ {[%emt 0:00:13]} Qxe6 {[%emt 0:00:14]} 16. b4 {[%emt 0:00:20]} g4 {[%emt 0:00:20]} 17. hxg4 {[%emt 0:00:10]} hxg4 {[%emt 0:00:11]} 18. Qf5 {[%emt 0:01:16]} Rh6 {[%emt 0:01:06]} 19. Qxe6+ {[%emt 0:00:38]} fxe6 {[%emt 0:00:08]} 20. b5 {[%emt 0:00:11]} Ne7 {[%emt 0:00:06]} 21. a5 {[%emt 0:00:59]} Kc7 {[%emt 0:00:55]} 22. axb6+ {[%emt 0:00:45]} axb6 {[%emt 0:00:20]} 0-1

[Event "DVM U12w 2024"]
[Site "Bad Homburg"]
[Date "2024.12.28"]
[Round "4"]
[White "Weißleder, Emia"]
[Black "Didas, Emma"]
[Result "0-1"]
[ECO "A41"]
[WhiteElo "1118"]
[BlackElo "1456"]
[Annotator "NA"]
[PlyCount "70"]
[EventDate "2024.12.23"]
[EventType "team-tourn"]
[EventRounds "7"]
[EventCountry "GER"]
[SourceTitle "playchess.com"]
[Source "ChessBase"]
[SourceQuality "1"]
[TimeControl "40/5400+30:1800+30"]

1. d4 {[%emt 0:00:04]} d6 {[%emt 0:00:06]} 2. Nc3 {[%emt 0:00:14]} Nf6 {[%emt 0:00:08]} 3. Bf4 {[%emt 0:00:09]} g6 {[%emt 0:00:05]} 4. f3 {[%emt 0:00:23]} Bg7 {[%emt 0:01:10]} 5. g4 {[%emt 0:00:22]} c6 {[%emt 0:00:06]} 6. h4 {[%emt 0:00:52]} b5 {[%emt 0:00:13]} 7. e3 {[%emt 0:02:24]} b4 {[%emt 0:00:21]} 8. Ne4 {[%emt 0:04:18]} Nd5 {[%emt 0:01:18]} 9. Bc4 {[%emt 0:02:17]} Nxf4 {[%emt 0:00:16]} 10. exf4 {[%emt 0:01:09]} d5 {[%emt 0:00:22]} 11. Bd3 {[%emt 0:04:47]} dxe4 {[%emt 0:00:46]} 12. Bxe4 {[%emt 0:01:47]} Qxd4 {[%emt 0:03:02]} 13. Qxd4 {[%emt 0:00:57]} Bxd4 {[%emt 0:00:12]} 14. O-O-O {[%emt 0:01:23]} Be3+ {[%emt 0:01:32]} 15. Kb1 {[%emt 0:00:53]} Bxf4 {[%emt 0:01:02]} 16. Ne2 {[%emt 0:00:55]} Bd6 {[%emt 0:00:53]} 17. Nd4 {[%emt 0:00:45]} Bd7 {[%emt 0:01:14]} 18. Rhe1 {[%emt 0:02:08]} a6 {[%emt 0:01:19]} 19. Re3 {[%emt 0:06:21]} Bc5 {[%emt 0:04:13]} 20. Red3 {[%emt 0:03:13]} O-O {[%emt 0:02:20]} 21. h5 {[%emt 0:02:25]} Ra7 {[%emt 0:01:18]} 22. hxg6 {[%emt 0:01:47]} fxg6 {[%emt 0:00:23]} 23. Rh1 {[%emt 0:06:06]} a5 {[%emt 0:01:08]} 24. b3 {[%emt 0:03:09]} Bxd4 {[%emt 0:03:04]} 25. Rxd4 {[%emt 0:01:15]} Be6 {[%emt 0:02:10]} 26. Rhd1 {[%emt 0:01:28]} Rd7 {[%emt 0:02:01]} 27. Bxc6 {[%emt 0:02:37]} Rxd4 {[%emt 0:01:06]} 28. Rxd4 {[%emt 0:01:28]} Nxc6 {[%emt 0:00:15]} 29. Re4 {[%emt 0:00:47]} Bd5 {[%emt 0:00:47]} 30. Re3 {[%emt 0:00:31]} Bxf3 {[%emt 0:00:24]} 31. Re6 {[%emt 0:00:47]} Nd4 {[%emt 0:00:42]} 32. Rxe7 {[%emt 0:00:22]} Bxg4 {[%emt 0:00:09]} 33. c4 {[%emt 0:00:31]} bxc3 {[%emt 0:00:19]} 34. Re4 {[%emt 0:00:45]} Rf1+ {[%emt 0:00:09]} 35. Re1 {[%emt 0:00:17]} Rxe1# {[%emt 0:00:04]} 0-1

[Event "DVM U12w 2024"]
[Site "Bad Homburg"]
[Date "2024.12.28"]
[Round "4"]
[White "Scharfenberg, Leah"]
[Black "Lao, Theodora Siyuan"]
[Result "1-0"]
[ECO "C56"]
[WhiteElo "1087"]
[BlackElo "1170"]
[Annotator "NA RC"]
[PlyCount "176"]
[EventDate "2024.12.23"]
[EventType "team-tourn"]
[EventRounds "7"]
[EventCountry "GER"]
[SourceTitle "playchess.com"]
[Source "ChessBase"]
[SourceQuality "1"]
[TimeControl "40/5400+30:1800+30"]

1. e4 {[%emt 0:00:01]} e5 {[%emt 0:00:01]} 2. Nf3 {[%emt 0:00:06]} Nc6 {[%emt 0:00:05]} 3. d4 {[%emt 0:00:07]} exd4 {[%emt 0:00:10]} 4. Bc4 {[%emt 0:00:09]} Nf6 {[%emt 0:00:19]} 5. e5 {[%emt 0:00:14]} d5 {[%emt 0:00:13]} 6. Bb5 {[%emt 0:00:14]} Ne4 {[%emt 0:00:29]} 7. Nxd4 {[%emt 0:00:24]} Bd7 {[%emt 0:00:13]} 8. Bxc6 {[%emt 0:00:14]} bxc6 {[%emt 0:00:10]} 9. O-O {[%emt 0:00:17]} Bc5 {[%emt 0:00:21]} 10. f3 {[%emt 0:00:40]} Ng5 {[%emt 0:00:29]} 11. Be3 {[%emt 0:01:01]} Bb6 {[%emt 0:00:36]} 12. f4 {[%emt 0:00:54]} Ne4 {[%emt 0:00:20]} 13. Nd2 {[%emt 0:00:24]} Nxd2 {[%emt 0:00:15]} 14. Qxd2 {[%emt 0:00:07]} c5 {[%emt 0:00:17]} 15. Nb3 {[%emt 0:00:21]} c4 {[%emt 0:00:38]} 16. Nc5 {[%emt 0:01:23]} c6 {[%emt 0:02:18]} 17. f5 {[%emt 0:11:05]} O-O {[%emt 0:01:11]} 18. f6 {[%emt 0:00:49]} g6 {[%emt 0:00:09]} 19. Bd4 {[%emt 0:00:41]} Kh8 {[%emt 0:01:18]} 20. Qh6 {[%emt 0:00:30]} Rg8 {[%emt 0:00:21]} 21. Rf3 {[%emt 0:00:46]} Bc8 {[%emt 0:01:20]} 22. Re1 {[%emt 0:05:40]} Bf5 {[%emt 0:01:55]} 23. e6 {[%emt 0:02:04]} Qe8 {[%emt 0:02:31]} 24. Rff1 {[%emt 0:08:49]} Bxc5 {[%emt 0:01:08]} 25. Bxc5 {[%emt 0:03:09]} fxe6 {[%emt 0:00:43]} 26. Bd4 {[%emt 0:00:53]} Qf7 {[%emt 0:01:23]} 27. Rf3 {[%emt 0:06:19]} a6 {[%emt 0:01:45]} 28. Rfe3 {[%emt 0:01:56]} Rae8 {[%emt 0:01:24]} 29. Ra3 {[%emt 0:01:04]} Ra8 {[%emt 0:00:51]} 30. Rf3 {[%emt 0:05:47]} a5 {[%emt 0:04:09]} 31. Rf4 {[%emt 0:05:33]} g5 {[%emt 0:01:13]} 32. Rxf5 {[%emt 0:03:33]} exf5 {[%emt 0:00:15]} 33. Re7 {[%emt 0:00:11]} Rg6 {[%emt 0:02:13]} 34. Rxf7 {[%emt 0:01:16]} Rxh6 {[%emt 0:00:17]} 35. Rc7 {[%emt 0:00:16]} Kg8 {[%emt 0:00:49]} 36. Rxc6 {[%emt 0:01:08]} Rg6 {[%emt 0:00:54]} 37. Rc7 {[%emt 0:00:27]} Rf8 {[%emt 0:01:33]} 38. Rc5 {[%emt 0:00:31]} Rd8 {[%emt 0:01:22]} 39. Rxa5 {[%emt 0:00:17]} h5 {[%emt 0:00:57]} 40. Ra6 {[%emt 0:01:16]} Kf7 {[%emt 0:00:39]} 41. Ra7+ {[%emt 0:30:35]} Ke6 {[%emt 0:30:55]} 42. Ra6+ {[%emt 0:00:24]} Kf7 {[%emt 0:01:04]} 43. Ra7+ {[%emt 0:00:09]} Ke8 {[%emt 0:01:25]} 44. f7+ {[%emt 0:00:45]} Kf8 {[%emt 0:00:06]} 45. Bc5+ {[%emt 0:00:08]} Rgd6 {[%emt 0:00:36]} 46. Bxd6+ {[%emt 0:00:19]} Rxd6 {[%emt 0:00:06]} 47. Kf2 {[%emt 0:00:20]} Rf6 {[%emt 0:00:13]} 48. Ke3 {[%emt 0:00:08]} Rxf7 {[%emt 0:00:15]} 49. Rxf7+ {[%emt 0:00:07]} Kxf7 {[%emt 0:00:08]} 50. Kd4 {[%emt 0:00:08]} Ke6 {[%emt 0:00:09]} 51. a4 {[%emt 0:00:11]} Kd6 {[%emt 0:00:29]} 52. a5 {[%emt 0:00:11]} Kc6 {[%emt 0:00:25]} 53. a6 {[%emt 0:00:11]} Kb6 {[%emt 0:00:05]} 54. a7 {[%emt 0:00:06]} Kxa7 {[%emt 0:00:04]} 55. Kxd5 {[%emt 0:00:04]} Kb6 {[%emt 0:00:10]} 56. Kxc4 {[%emt 0:00:19]} Kc6 {[%emt 0:00:06]} 57. b4 {[%emt 0:00:27]} f4 {[%emt 0:00:09]} 58. Kd4 {[%emt 0:00:27]} Kb5 {[%emt 0:02:00]} 59. Ke5 {[%emt 0:01:58]} Kxb4 {[%emt 0:00:46]} 60. Kf5 {[%emt 0:00:12]} Kc3 {[%emt 0:00:55]} 61. Kxg5 {[%emt 0:00:37]} Kxc2 {[%emt 0:00:10]} 62. Kxf4 {[%emt 0:00:10]} Kd3 {[%emt 0:00:10]} 63. Kg5 {[%emt 0:00:08]} Ke4 {[%emt 0:00:26]} 64. Kxh5 {[%emt 0:00:40]} Kf5 {[%emt 0:00:16]} 65. g4+ {[%emt 0:00:32]} Kf6 {[%emt 0:00:10]} 66. Kh6 {[%emt 0:00:11]} Kf7 {[%emt 0:00:09]} 67. g5 {[%emt 0:00:22]} Kg8 {[%emt 0:00:23]} 68. Kg6 {[%emt 0:00:04]} Kf8 {[%emt 0:00:10]} 69. Kh7 {[%emt 0:00:08]} Ke7 {[%emt 0:00:06]} 70. g6 {[%emt 0:00:05]} Ke6 {[%emt 0:00:06]} 71. g7 {[%emt 0:00:05]} Ke5 {[%emt 0:00:05]} 72. g8=Q {[%emt 0:00:11]} Kd4 {[%emt 0:00:06]} 73. Qe6 {[%emt 0:00:14]} Kd3 {[%emt 0:00:08]} 74. Qe5 {[%emt 0:00:08]} Kd2 {[%emt 0:00:13]} 75. Qe4 {[%emt 0:00:13]} Kd1 {[%emt 0:00:08]} 76. Qe3 {[%emt 0:00:22]} Kc2 {[%emt 0:00:06]} 77. Kg6 {[%emt 0:00:14]} Kb2 {[%emt 0:00:08]} 78. Qd3 {[%emt 0:00:11]} Ka2 {[%emt 0:00:07]} 79. Qc3 {[%emt 0:01:13]} Kb1 {[%emt 0:00:07]} 80. Kf5 {[%emt 0:00:07]} Ka2 {[%emt 0:00:14]} 81. Ke4 {[%emt 0:00:10]} Kb1 {[%emt 0:00:05]} 82. Kd4 {[%emt 0:01:04]} Ka2 {[%emt 0:00:15]} 83. h4 {[%emt 0:00:37]} Kb1 {[%emt 0:00:05]} 84. h5 {[%emt 0:00:08]} Ka2 {[%emt 0:00:05]} 85. h6 {[%emt 0:00:08]} Kb1 {[%emt 0:00:06]} 86. h7 {[%emt 0:00:02]} Ka2 {[%emt 0:00:03]} 87. h8=Q {[%emt 0:00:18]} Kb1 {[%emt 0:00:06]} 88. Qb8+ {[%emt 0:00:29]} Ka2 {[%emt 0:00:08]} 1-0

[Event "DVM U12w 2024"]
[Site "Bad Homburg"]
[Date "2024.12.28"]
[Round "4"]
[White "Zietz, Leni"]
[Black "Dinges, Mara"]
[Result "1-0"]
[ECO "D02"]
[WhiteElo "1071"]
[BlackElo "854"]
[Annotator "NA RC"]
[PlyCount "79"]
[EventDate "2024.12.23"]
[EventType "team-tourn"]
[EventRounds "7"]
[EventCountry "GER"]
[SourceTitle "playchess.com"]
[Source "ChessBase"]
[SourceQuality "1"]
[TimeControl "40/5400+30:1800+30"]

1. d4 {[%emt 0:00:01]} d5 {[%emt 0:00:08]} 2. Nf3 {[%emt 0:00:05]} Nf6 {[%emt 0:00:08]} 3. Bf4 {[%emt 0:00:08]} c5 {[%emt 0:00:17]} 4. e3 {[%emt 0:00:21]} e6 {[%emt 0:00:12]} 5. Nbd2 {[%emt 0:00:13]} b6 {[%emt 0:00:36]} 6. c4 {[%emt 0:00:28]} Be7 {[%emt 0:01:19]} 7. Bd3 {[%emt 0:00:16]} Bb7 {[%emt 0:00:32]} 8. O-O {[%emt 0:00:51]} Nbd7 {[%emt 0:00:26]} 9. Ne5 {[%emt 0:00:41]} Nxe5 {[%emt 0:01:07]} 10. Bxe5 {[%emt 0:00:10]} O-O {[%emt 0:00:55]} 11. Qf3 {[%emt 0:00:34]} Nd7 {[%emt 0:01:39]} 12. Qh3 {[%emt 0:00:29]} h6 {[%emt 0:01:43]} 13. Bf4 {[%emt 0:00:54]} Bg5 {[%emt 0:00:38]} 14. Bg3 {[%emt 0:03:48]} Re8 {[%emt 0:02:57]} 15. Nf3 {[%emt 0:01:25]} Bf6 {[%emt 0:01:01]} 16. Bf4 {[%emt 0:04:31]} e5 {[%emt 0:03:16]} 17. Nxe5 {[%emt 0:01:48]} Nxe5 {[%emt 0:00:31]} 18. dxe5 {[%emt 0:02:12]} Bg5 {[%emt 0:01:02]} 19. Bg3 {[%emt 0:01:13]} Bc8 {[%emt 0:00:17]} 20. Bf5 {[%emt 0:03:17]} Bxf5 {[%emt 0:00:25]} 21. Qxf5 {[%emt 0:00:12]} dxc4 {[%emt 0:02:38]} 22. Rfd1 {[%emt 0:00:37]} Qe7 {[%emt 0:01:27]} 23. Rac1 {[%emt 0:01:33]} Qe6 {[%emt 0:00:16]} 24. Qxe6 {[%emt 0:00:47]} Rxe6 {[%emt 0:00:29]} 25. Rxc4 {[%emt 0:00:18]} Kh7 {[%emt 0:01:03]} 26. f4 {[%emt 0:01:14]} Bd8 {[%emt 0:00:54]} 27. Rc2 {[%emt 0:01:22]} Bc7 {[%emt 0:00:30]} 28. Rcd2 {[%emt 0:00:24]} a5 {[%emt 0:00:48]} 29. Rd7 {[%emt 0:00:29]} Rc8 {[%emt 0:01:00]} 30. Rxf7 {[%emt 0:00:16]} b5 {[%emt 0:00:32]} 31. Rdd7 {[%emt 0:01:12]} Rg8 {[%emt 0:01:22]} 32. Rxc7 {[%emt 0:00:15]} c4 {[%emt 0:00:19]} 33. Be1 {[%emt 0:00:42]} a4 {[%emt 0:00:23]} 34. Rb7 {[%emt 0:00:13]} a3 {[%emt 0:00:26]} 35. Rxb5 {[%emt 0:00:17]} Ra6 {[%emt 0:00:15]} 36. f5 {[%emt 0:01:05]} Kh8 {[%emt 0:00:45]} 37. e6 {[%emt 0:00:32]} Raa8 {[%emt 0:00:34]} 38. Bc3 {[%emt 0:00:32]} h5 {[%emt 0:01:06]} 39. f6 {[%emt 0:00:21]} Raf8 {[%emt 0:00:33]} 40. Rxh5# {[%emt 0:00:26]} 1-0

[Event "DVM U12w 2024"]
[Site "Bad Homburg"]
[Date "2024.12.28"]
[Round "4"]
[White "Anaparthi, Anika"]
[Black "Raghavan, Madhushri"]
[Result "0-1"]
[ECO "C44"]
[WhiteElo "1052"]
[BlackElo "1410"]
[Annotator "NA RC"]
[PlyCount "122"]
[EventDate "2024.12.23"]
[EventType "team-tourn"]
[EventRounds "7"]
[EventCountry "GER"]
[SourceTitle "playchess.com"]
[Source "ChessBase"]
[SourceQuality "1"]
[TimeControl "40/5400+30:1800+30"]

1. e4 {[%emt 0:00:04]} e5 {[%emt 0:00:15]} 2. Nf3 {[%emt 0:00:12]} Nc6 {[%emt 0:00:17]} 3. c3 {[%emt 0:00:12]} Nf6 {[%emt 0:00:41]} 4. d4 {[%emt 0:00:35]} exd4 {[%emt 0:01:58]} 5. e5 {[%emt 0:00:48]} Nd5 {[%emt 0:01:35]} 6. cxd4 {[%emt 0:18:48]} f6 {[%emt 0:02:30]} 7. Bc4 {[%emt 0:00:38]} Nb6 {[%emt 0:01:15]} 8. Bb3 {[%emt 0:00:18]} d5 {[%emt 0:02:26]} 9. Nc3 {[%emt 0:00:24]} Bb4 {[%emt 0:01:38]} 10. Bd2 {[%emt 0:01:12]} O-O {[%emt 0:01:19]} 11. O-O {[%emt 0:03:01]} Bg4 {[%emt 0:01:20]} 12. Be3 {[%emt 0:32:49]} Bxc3 {[%emt 0:01:50]} 13. bxc3 {[%emt 0:00:20]} fxe5 {[%emt 0:03:41]} 14. dxe5 {[%emt 0:08:30]} Nxe5 {[%emt 0:01:59]} 15. Bg5 {[%emt 0:02:54]} Bxf3 {[%emt 0:01:41]} 16. Bxd8 {[%emt 0:01:17]} Bxd1 {[%emt 0:00:35]} 17. Bxc7 {[%emt 0:01:37]} Bxb3 {[%emt 0:00:43]} 18. axb3 {[%emt 0:00:13]} Ng6 {[%emt 0:02:53]} 19. Rfe1 {[%emt 0:03:35]} Rac8 {[%emt 0:03:46]} 20. Bd6 {[%emt 0:00:00]} Rfe8 {[%emt 0:01:18]} 21. Rec1 {[%emt 0:00:47]} a6 {[%emt 0:01:17]} 22. h3 {[%emt 0:01:28]} Re6 {[%emt 0:01:38]} 23. Bb4 {[%emt 0:01:33]} Nf4 {[%emt 0:01:30]} 24. Kf1 {[%emt 0:03:12]} Nd3 {[%emt 0:01:26]} 25. Rd1 {[%emt 0:03:09]} Nxb4 {[%emt 0:01:10]} 26. cxb4 {[%emt 0:00:17]} Rc2 {[%emt 0:01:11]} 27. f3 {[%emt 0:02:54]} Ree2 {[%emt 0:00:54]} 28. Rac1 {[%emt 0:01:22]} Rf2+ {[%emt 0:00:44]} 29. Kg1 {[%emt 0:00:10]} Rxg2+ {[%emt 0:00:26]} 30. Kh1 {[%emt 0:00:32]} Rh2+ {[%emt 0:00:22]} 31. Kg1 {[%emt 0:00:09]} Rxc1 {[%emt 0:01:19]} 32. Rxc1 {[%emt 0:00:26]} Rxh3 {[%emt 0:00:18]} 33. Kg2 {[%emt 0:00:18]} Rh4 {[%emt 0:00:41]} 34. Rc7 {[%emt 0:00:47]} Rxb4 {[%emt 0:00:55]} 35. Rxb7 {[%emt 0:00:09]} Rxb3 {[%emt 0:00:34]} 36. Ra7 {[%emt 0:01:15]} Ra3 {[%emt 0:00:38]} 37. Rb7 {[%emt 0:00:23]} Nc4 {[%emt 0:00:31]} 38. Rd7 {[%emt 0:00:53]} Ne3+ {[%emt 0:00:47]} 39. Kf2 {[%emt 0:01:00]} a5 {[%emt 0:01:04]} 40. Ke2 {[%emt 0:00:24]} a4 {[%emt 0:00:56]} 41. Kd2 {[%emt 0:31:50]} Rb3 {[%emt 0:31:33]} 42. Ra7 {[%emt 0:01:32]} a3 {[%emt 0:01:03]} 43. Kc1 {[%emt 0:00:45]} Nc4 {[%emt 0:01:18]} 44. Kc2 {[%emt 0:01:36]} Rb2+ {[%emt 0:01:46]} 45. Kc1 {[%emt 0:01:19]} a2 {[%emt 0:00:23]} 46. Ra4 {[%emt 0:02:41]} Rb1+ {[%emt 0:00:16]} 47. Kc2 {[%emt 0:00:13]} a1=Q {[%emt 0:00:17]} 48. Rxa1 {[%emt 0:00:09]} Rxa1 {[%emt 0:00:13]} 49. Kd3 {[%emt 0:00:12]} h5 {[%emt 0:00:12]} 50. Kd4 {[%emt 0:00:08]} h4 {[%emt 0:00:11]} 51. Kxd5 {[%emt 0:00:06]} h3 {[%emt 0:00:07]} 52. Kxc4 {[%emt 0:00:05]} h2 {[%emt 0:00:09]} 53. Kd4 {[%emt 0:00:04]} h1=Q {[%emt 0:00:07]} 54. Ke4 {[%emt 0:00:10]} Ra4+ {[%emt 0:00:23]} 55. Ke3 {[%emt 0:00:07]} Qe1+ {[%emt 0:00:15]} 56. Kd3 {[%emt 0:00:11]} Ra8 {[%emt 0:00:07]} 57. Kd4 {[%emt 0:00:09]} Rd8+ {[%emt 0:00:12]} 58. Kc5 {[%emt 0:00:05]} Qc1+ {[%emt 0:00:08]} 59. Kb6 {[%emt 0:00:06]} Rb8+ {[%emt 0:00:11]} 60. Ka7 {[%emt 0:00:09]} Qc7+ {[%emt 0:00:27]} 61. Ka6 {[%emt 0:00:25]} Qb6# {[%emt 0:01:04]} 0-1

[Event "DVM U12w 2024"]
[Site "Bad Homburg"]
[Date "2024.12.28"]
[Round "4"]
[White "Mrugalski, Marie"]
[Black "Bacakova, Klara"]
[Result "1/2-1/2"]
[ECO "D02"]
[WhiteElo "1052"]
[BlackElo "1539"]
[Annotator "NA RC"]
[PlyCount "48"]
[EventDate "2024.12.23"]
[EventType "team-tourn"]
[EventRounds "7"]
[EventCountry "GER"]
[SourceTitle "playchess.com"]
[Source "ChessBase"]
[SourceQuality "1"]
[TimeControl "40/5400+30:1800+30"]

1. d4 {[%emt 0:00:03]} d5 {[%emt 0:00:07]} 2. Bf4 {[%emt 0:00:09]} Nf6 {[%emt 0:00:06]} 3. e3 {[%emt 0:00:09]} e6 {[%emt 0:00:07]} 4. Bd3 {[%emt 0:00:15]} Nbd7 {[%emt 0:01:02]} 5. Nf3 {[%emt 0:00:42]} c5 {[%emt 0:01:20]} 6. c3 {[%emt 0:01:08]} Be7 {[%emt 0:03:39]} 7. Nbd2 {[%emt 0:02:12]} O-O {[%emt 0:00:59]} 8. Qc2 {[%emt 0:01:48]} c4 {[%emt 0:00:32]} 9. Be2 {[%emt 0:01:14]} b5 {[%emt 0:00:31]} 10. O-O {[%emt 0:03:09]} Nh5 {[%emt 0:09:11]} 11. Ne5 {[%emt 0:10:16]} Nxf4 {[%emt 0:02:52]} 12. exf4 {[%emt 0:00:56]} Nxe5 {[%emt 0:09:44]} 13. fxe5 {[%emt 0:00:37]} f6 {[%emt 0:05:13]} 14. exf6 {[%emt 0:06:43]} Bxf6 {[%emt 0:01:01]} 15. Nf3 {[%emt 0:03:31]} Qd6 {[%emt 0:04:47]} 16. Rfe1 {[%emt 0:08:17]} Bb7 {[%emt 0:12:33]} 17. Qd2 {[%emt 0:03:03]} Rf7 {[%emt 0:06:46]} 18. Ng5 {[%emt 0:06:23]} Bxg5 {[%emt 0:02:42]} 19. Qxg5 {[%emt 0:00:12]} Qf4 {[%emt 0:00:34]} 20. Qxf4 {[%emt 0:01:54]} Rxf4 {[%emt 0:00:05]} 21. Bh5 {[%emt 0:00:32]} Rf6 {[%emt 0:01:39]} 22. Re5 {[%emt 0:01:12]} Rf5 {[%emt 0:03:28]} 23. Rae1 {[%emt 0:03:29]} Rxe5 {[%emt 0:01:27]} 24. Rxe5 {[%emt 0:00:19]} Bc8 {[%emt 0:03:17]} 1/2-1/2

[Event "DVM U12w 2024"]
[Site "Bad Homburg"]
[Date "2024.12.28"]
[Round "4"]
[White "Bacakova, Johanna"]
[Black "Schindler, Amilia"]
[Result "1-0"]
[ECO "C56"]
[WhiteElo "1045"]
[BlackElo "790"]
[Annotator "NA RC"]
[PlyCount "55"]
[EventDate "2024.12.23"]
[EventType "team-tourn"]
[EventRounds "7"]
[EventCountry "GER"]
[SourceTitle "playchess.com"]
[Source "ChessBase"]
[SourceQuality "1"]
[TimeControl "40/5400+30:1800+30"]

1. e4 {[%emt 0:00:02]} e5 {[%emt 0:00:09]} 2. Nf3 {[%emt 0:00:07]} Nc6 {[%emt 0:00:08]} 3. d4 {[%emt 0:00:22]} exd4 {[%emt 0:00:13]} 4. Bc4 {[%emt 0:00:01]} Nf6 {[%emt 0:00:42]} 5. O-O {[%emt 0:00:12]} Bc5 {[%emt 0:00:38]} 6. e5 {[%emt 0:01:21]} Ne4 {[%emt 0:00:40]} 7. Qe2 {[%emt 0:01:10]} d5 {[%emt 0:00:36]} 8. exd6 {[%emt 0:00:12]} Bf5 {[%emt 0:00:37]} 9. dxc7 {[%emt 0:00:32]} Qxc7 {[%emt 0:00:12]} 10. Nbd2 {[%emt 0:02:19]} Qe7 {[%emt 0:00:36]} 11. Nxe4 {[%emt 0:01:54]} Bxe4 {[%emt 0:00:16]} 12. Bg5 {[%emt 0:11:43]} f6 {[%emt 0:03:18]} 13. Bf4 {[%emt 0:03:13]} Na5 {[%emt 0:01:09]} 14. Bb5+ {[%emt 0:04:49]} Bc6 {[%emt 0:00:20]} 15. Bxc6+ {[%emt 0:02:13]} bxc6 {[%emt 0:00:19]} 16. Rfe1 {[%emt 0:02:05]} Qxe2 {[%emt 0:01:48]} 17. Rxe2+ {[%emt 0:00:30]} Be7 {[%emt 0:00:56]} 18. Rae1 {[%emt 0:01:39]} Rd8 {[%emt 0:03:51]} 19. Rxe7+ {[%emt 0:02:01]} Kf8 {[%emt 0:00:20]} 20. Bc7 {[%emt 0:04:05]} Rc8 {[%emt 0:00:26]} 21. Bxa5 {[%emt 0:01:39]} h5 {[%emt 0:01:21]} 22. Rd7 {[%emt 0:04:16]} Re8 {[%emt 0:02:15]} 23. Bb4+ {[%emt 0:01:30]} Kg8 {[%emt 0:01:17]} 24. Rxe8+ {[%emt 0:00:46]} Kh7 {[%emt 0:00:12]} 25. Ree7 {[%emt 0:03:35]} Rg8 {[%emt 0:00:21]} 26. Bd2 {[%emt 0:01:34]} a6 {[%emt 0:01:02]} 27. Re6 {[%emt 0:01:02]} f5 {[%emt 0:00:39]} 28. Rh6# {[%emt 0:00:27]} 1-0